bitfinex/quotes_ETHUSD_20250217
["timestamp","ask_amount","ask_price","bid_price","bid_amount"]
[1739825442623,0.00546209,2746.2,2746.0,2.91332]
[1739825443127,0.00546209,2746.2,2746.1,2.91322]
[1739825444227,0.00546209,2746.2,2745.9,0.7639]
[1739825444765,0.00546209,2746.2,2745.9,3.6773]
[1739825445281,0.00546209,2746.2,2745.9,0.7639]
[1739825445697,0.00546209,2746.2,2745.9,3.67732]
[1739825446009,0.00546209,2746.2,2745.9,0.7639]
[1739825446217,1.00763461,2746.2,2745.9,0.7639]
[1739825446505,3.0,2746.1,2745.7,0.79136308]
[1739825447206,2.9134,2746.0,2745.7,0.79136308]
[1739825447406,2.91338,2746.0,2745.7,0.00546308]
[1739825447609,4.10318315,2745.8,2745.7,0.00546308]
[1739825447800,10.71838447,2745.8,2745.7,0.00546308]
[1739825447977,19.83838447,2745.8,2745.7,0.00546308]
[1739825448821,3.0,2745.8,2745.7,0.00546308]
[1739825449129,3.00546209,2746.2,2745.7,0.79336308]
[1739825449470,2.91328,2746.1,2745.7,0.79336308]
[1739825449707,0.04151347,2746.0,2745.7,0.79336308]
[1739825449912,2.91349,2745.9,2745.7,0.00546308]
[1739825450107,4.20648532,2745.9,2745.7,0.00546308]
[1739825450806,1.29299532,2745.9,2745.7,0.00546308]
[1739825451013,4.20651532,2745.9,2745.7,0.00546308]
[1739825451614,1.29299532,2745.9,2745.7,0.00546308]
[1739825451810,5.91354,2745.8,2745.7,0.00546308]
[1739825452200,7.0421,2745.8,2745.7,0.00546308]
[1739825452794,20.26528315,2745.8,2745.7,0.00546308]
[1739825452993,20.22376968,2745.8,2745.7,0.00546308]
[1739825453196,2.91867209,2746.2,2745.7,2.91909308]
[1739825453381,2.91867209,2746.2,2745.7,0.78746308]
[1739825453894,0.04151347,2746.1,2745.7,0.78746308]
[1739825454422,3.04151347,2746.1,2745.7,0.78746308]
[1739825454584,2.91345,2745.9,2745.7,0.00546308]
[1739825454779,0.04151347,2745.8,2745.7,0.00546308]
[1739825454986,6.54188782,2745.8,2745.7,0.00546308]
[1739825455518,3.58683435,2745.8,2745.7,0.00546308]
[1739825455742,2.91867209,2746.2,2745.7,0.00546308]
[1739825456047,3.00546209,2746.2,2745.7,0.79996308]
[1739825456318,2.91328,2746.1,2745.7,0.79996308]
[1739825456535,3.00546209,2746.2,2745.7,3.71360308]
[1739825456679,5.91860209,2746.2,2745.7,0.79996308]
[1739825457287,8.83179209,2746.2,2745.7,0.79996308]
[1739825457488,2.91345,2745.9,2745.7,0.00546308]
[1739825458025,10.05823662,2745.8,2745.7,0.00546308]
[1739825458196,10.01672315,2745.8,2745.7,0.00546308]
[1739825458926,3.0,2745.8,2745.7,0.00546308]
[1739825459586,0.04151347,2746.0,2745.7,0.77326308]
[1739825460188,3.0,2746.1,2745.7,0.77326308]
[1739825460596,5.91859209,2746.2,2745.7,0.77326308]
[1739825460791,3.9713883,2746.2,2745.7,0.77326308]
[1739825461325,6.8845183,2746.2,2745.7,0.77326308]
[1739825461732,2.9133,2746.1,2745.7,0.77326308]
[1739825461894,3.00546209,2746.2,2745.8,2.91351]
[1739825462111,5.91860209,2746.2,2745.7,3.68689308]
[1739825462859,5.91860209,2746.2,2745.7,0.77326308]
[1739825463142,2.91327,2746.1,2745.7,0.77326308]
[1739825463346,0.04151347,2746.0,2745.7,0.77326308]
[1739825463496,2.91333,2746.0,2745.7,0.77326308]
[1739825463809,4.38170761,2746.2,2745.7,0.77326308]
[1739825464010,2.91322,2746.1,2745.7,0.77326308]
[1739825464327,7.29485761,2746.2,2745.7,0.00546308]
[1739825464328,2.91354,2745.8,2745.7,0.00546308]
[1739825464625,6.66524,2745.8,2745.7,0.00546308]
[1739825465024,5.91354,2745.8,2745.7,0.00546308]
[1739825465326,5.81594,2745.8,2745.7,0.00546308]
[1739825465544,14.97745347,2745.8,2745.7,0.00546308]
[1739825465849,17.98912844,2745.8,2745.7,0.00546308]
[1739825466209,5.91354,2745.8,2745.7,0.00546308]
[1739825466550,15.03354,2745.8,2745.7,0.00546308]
[1739825467062,15.82724,2745.8,2745.7,0.00546308]
[1739825467191,5.0,2745.6,2745.4,0.00546368]
[1739825467549,5.91417,2745.2,2745.1,0.00546428]
[1739825467754,19.14035315,2745.2,2745.1,0.00546428]
[1739825469236,22.66005315,2745.2,2745.1,0.00546428]
[1739825469534,23.13039278,2745.2,2745.1,0.00546428]
[1739825469900,23.13039278,2745.2,2745.1,4.28e-06]
[1739825470117,11.41129,2744.9,2744.5,3.4e-07]
[1739825470323,18.51479315,2744.6,2744.5,3.4e-07]
[1739825470544,18.98513278,2744.6,2744.5,3.4e-07]
[1739825470895,17.20831315,2744.3,2743.9,6.67e-06]
[1739825471101,16.32543315,2744.0,2743.9,6.67e-06]
[1739825471335,7.91577,2743.7,2743.3,0.00546786]
[1739825471534,25.45475315,2743.7,2743.3,0.00546786]
[1739825471944,20.45475315,2743.7,2743.3,0.00546786]
[1739825472159,19.90475315,2743.7,2743.3,0.00546786]
[1739825472717,20.95559912,2743.7,2743.3,0.00546786]
[1739825473022,3.0,2743.7,2743.6,0.78156726]
[1739825473345,5.15402912,2744.3,2743.6,0.78156726]
[1739825473525,2.91524,2744.2,2743.6,3.69735726]
[1739825473726,8.06922912,2744.3,2743.6,0.78156726]
[1739825474024,3.0,2744.0,2743.6,0.78156726]
[1739825474227,3.0,2743.8,2743.6,0.00546726]
[1739825474417,11.06979912,2743.7,2743.6,0.00546726]
[1739825474754,16.61979912,2743.7,2743.6,0.00546726]
[1739825475069,17.38299912,2743.7,2743.6,0.00546726]
[1739825476768,18.13133875,2743.7,2743.6,7.26e-06]
[1739825476941,21.50621752,2743.7,2743.6,7.26e-06]
[1739825477444,15.67821752,2743.7,2743.6,7.26e-06]
[1739825477641,2.91577,2743.7,2743.6,7.26e-06]
[1739825477842,2.91512,2744.4,2743.6,3.70537726]
[1739825478053,7.91536,2744.1,2743.6,0.78950726]
[1739825478258,2.91536,2744.1,2743.6,0.78950726]
[1739825478456,9.127,2744.0,2743.6,0.78950726]
[1739825478662,3.63128009,2744.3,2743.6,0.78950726]
[1739825478663,8.89601912,2744.5,2743.6,1.16005699]
[1739825478844,2.91482,2744.6,2743.6,0.78950726]
[1739825479165,2.91506,2744.4,2743.7,3.70199]
[1739825479593,2.91494,2744.5,2743.9,2.91549]
[1739825479879,2.91506,2744.4,2743.7,0.7863]
[1739825480171,0.04151347,2744.3,2743.7,0.7863]
[1739825480470,2.91554,2744.0,2743.7,0.7863]
[1739825480648,2.91554,2744.0,2743.6,7.26e-06]
[1739825480844,0.04151347,2743.9,2743.6,7.26e-06]
[1739825481169,3.21974135,2743.9,2743.6,7.26e-06]
[1739825481467,2.91572,2743.8,2743.6,7.26e-06]
[1739825481877,2.95728347,2743.7,2743.6,7.26e-06]
[1739825482234,16.43308347,2743.7,2743.6,7.26e-06]
[1739825482434,16.86190963,2743.7,2743.6,7.26e-06]
[1739825482655,19.41515101,2743.7,2743.6,7.26e-06]
[1739825484073,21.60515101,2743.7,2743.6,7.26e-06]
[1739825484251,22.07549064,2743.7,2743.6,7.26e-06]
[1739825484646,7.9164,2743.1,2743.0,3.58e-06]
[1739825484960,12.131,2743.1,2743.0,3.58e-06]
[1739825485163,15.0474,2743.1,2743.0,3.58e-06]
[1739825485472,9.5538649,2743.1,2743.0,3.58e-06]
[1739825485675,2.91603,2743.5,2743.0,3.58e-06]
[1739825485881,11.20939101,2743.7,2743.0,3.00000358]
[1739825486048,2.91605,2743.5,2743.0,3.58e-06]
[1739825486487,11.20940101,2743.7,2743.0,2.91647358]
[1739825486784,8.18582,2743.7,2743.0,2.91647358]
[1739825487611,2.9159,2743.6,2743.0,2.91647358]
[1739825487784,2.91599,2743.5,2743.0,3.58e-06]
[1739825488100,0.04151347,2743.6,2743.0,3.58e-06]
[1739825488304,2.95739347,2743.6,2743.0,3.58e-06]
[1739825488481,8.18582,2743.7,2743.0,2.91649358]
[1739825488683,5.27,2743.7,2743.2,3.0]
[1739825488854,5.27,2743.7,2743.2,2.91623]
[1739825489050,8.18577,2743.7,2743.1,0.7844]
[1739825489304,8.18577,2743.7,2743.2,3.0]
[1739825489523,4.025908,2743.7,2743.1,0.7844]
[1739825489807,2.91609,2743.4,2743.1,0.7844]
[1739825490214,1.110138,2743.7,2743.0,3.58e-06]
[1739825490215,2.91625,2743.3,2743.0,3.58e-06]
[1739825490395,2.95782347,2743.2,2743.0,3.58e-06]
[1739825490910,5.83249,2743.3,2743.0,3.58e-06]
[1739825491055,2.9162,2743.3,2743.0,3.58e-06]
[1739825491256,0.7752,2743.4,2743.0,3.58e-06]
[1739825491461,2.91602,2743.5,2743.0,3.58e-06]
[1739825491709,2.91602,2743.5,2743.0,3.00000358]
[1739825491909,4.825858,2743.7,2743.0,3.58e-06]
[1739825492206,2.91605,2743.5,2743.0,3.58e-06]
[1739825492371,2.91616,2743.4,2743.0,3.58e-06]
[1739825492575,3.499381,2743.4,2743.0,3.58e-06]
[1739825492912,2.95772347,2743.3,2743.0,3.58e-06]
[1739825493208,2.91621,2743.3,2743.0,3.58e-06]
[1739825493858,2.91632,2743.2,2743.0,3.58e-06]
[1739825493998,2.91621,2743.3,2743.0,3.58e-06]
[1739825494213,3.30781657,2743.2,2743.0,3.58e-06]
[1739825494573,0.3499431,2743.2,2743.0,3.58e-06]
[1739825494828,4.025908,2743.7,2743.2,3.0]
[1739825494970,2.91595,2743.6,2743.1,3.0]
[1739825495169,0.00546746,2743.5,2743.0,3.58e-06]
[1739825495387,2.92151746,2743.5,2743.0,3.58e-06]
[1739825495672,0.00546746,2743.5,2743.1,2.91637]
[1739825495890,2.96305093,2743.5,2743.0,3.58e-06]
[1739825496100,0.7068141,2743.5,2743.0,3.58e-06]
[1739825496320,2.91608,2743.4,2743.0,3.58e-06]
[1739825496973,2.91619,2743.3,2743.0,3.58e-06]
[1739825497406,5.83224,2743.4,2743.0,3.58e-06]
[1739825497634,2.91625,2743.3,2743.0,3.58e-06]
[1739825497947,2.91608,2743.4,2743.0,3.58e-06]
[1739825498244,0.29215475,2743.3,2743.0,3.58e-06]
[1739825498410,2.91637,2743.2,2743.0,3.58e-06]
[1739825498608,12.0454,2743.1,2743.0,3.58e-06]
[1739825499225,9.129,2743.1,2743.0,3.58e-06]
[1739825500130,12.0454,2743.1,2743.0,3.58e-06]
[1739825500443,14.09778147,2743.1,2743.0,3.58e-06]
[1739825501835,11.18138147,2743.1,2743.0,3.58e-06]
[1739825502038,14.09778147,2743.1,2743.0,3.58e-06]
[1739825503607,19.88658147,2743.1,2743.0,3.58e-06]
[1739825504506,22.62658147,2743.1,2743.0,3.58e-06]
[1739825505633,22.47618147,2743.1,2743.0,3.58e-06]
[1739825506431,19.73618147,2743.1,2743.0,3.58e-06]
[1739825508474,20.46346348,2743.1,2743.0,3.58e-06]
[1739825509035,23.46346348,2743.1,2743.0,3.58e-06]
[1739825513489,26.20346348,2743.1,2743.0,3.58e-06]
[1739825513998,31.47346348,2743.1,2743.0,3.58e-06]
[1739825514785,35.58841969,2743.1,2743.0,3.58e-06]
[1739825516185,35.7788288,2743.1,2743.0,3.58e-06]
[1739825520295,28.0388288,2743.1,2743.0,3.58e-06]
[1739825521178,23.13507259,2743.1,2743.0,3.58e-06]
[1739825521379,20.21867259,2743.1,2743.0,3.58e-06]
[1739825521578,22.94466348,2743.1,2743.0,3.58e-06]
[1739825521810,17.97588201,2743.1,2743.0,3.58e-06]
[1739825522540,14.97588201,2743.1,2743.0,3.58e-06]
[1739825522746,5.27,2743.1,2743.0,3.74621358]
[1739825523027,0.74026361,2743.5,2743.0,3.74621358]
[1739825524118,0.74026361,2743.5,2743.0,0.82970358]
[1739825524424,0.74026361,2743.5,2743.0,1.20434294]
[1739825524639,0.00546746,2743.5,2743.0,1.20434294]
[1739825524779,0.00546746,2743.5,2743.2,3.68994]
[1739825524980,0.00546746,2743.5,2743.2,0.7737]
[1739825525179,0.00546746,2743.5,2743.0,3.58e-06]
[1739825525180,2.9164,2743.1,2743.0,3.58e-06]
[1739825525381,2.95791347,2743.1,2743.0,3.58e-06]
[1739825525682,16.63169584,2743.1,2743.0,3.58e-06]
[1739825525993,26.40922542,2743.1,2743.0,3.58e-06]
[1739825526196,7.91672,2742.8,2742.7,9.06e-06]
[1739825526394,25.20131584,2742.8,2742.7,9.06e-06]
[1739825526616,7.91704,2742.5,2742.4,0.00546966]
[1739825526810,17.60004,2742.5,2742.4,0.00546966]
[1739825527019,19.91777096,2742.5,2742.4,0.00546966]
[1739825527323,22.10777096,2742.5,2742.4,0.00546966]
[1739825527534,25.10777096,2742.5,2742.4,0.00546966]
[1739825527734,22.52764154,2742.5,2742.4,0.00546966]
[1739825527915,9.133,2742.5,2742.4,0.00546966]
[1739825528122,5.15987058,2742.8,2742.4,0.00546966]
[1739825528947,3.66260981,2743.1,2742.5,0.7737]
[1739825528948,0.04151347,2743.0,2742.5,0.7737]
[1739825529101,5.91687,2742.7,2742.4,0.00546966]
[1739825529283,11.07691058,2742.5,2742.4,0.00546966]
[1739825529633,20.20791058,2742.5,2742.4,0.00546966]
[1739825530290,17.20791058,2742.5,2742.4,0.00546966]
[1739825532866,14.29087058,2742.5,2742.4,0.00546966]
[1739825533076,5.15987058,2742.8,2742.4,0.83386966]
[1739825533274,2.91684,2742.7,2742.4,0.83386966]
[1739825533585,5.15987058,2742.8,2742.4,0.83386966]
[1739825534186,0.72389021,2742.9,2742.4,0.83386966]
[1739825534187,0.00546866,2742.9,2742.5,3.0]
[1739825535384,0.00546866,2742.9,2742.4,1.50898463]
[1739825535589,0.00546866,2742.9,2742.8,3.0]
[1739825535891,0.00546866,2742.9,2742.8,6.72632]
[1739825539184,0.00546866,2742.9,2742.8,0.8096]
[1739825539383,0.00546866,2742.9,2742.8,3.72632]
[1739825539788,0.00546866,2742.9,2742.8,3.76277541]
[1739825539944,0.00546866,2742.9,2742.8,4.98596354]
[1739825541385,0.00546866,2742.9,2742.8,7.98596354]
[1739825544386,0.00546866,2742.9,2742.8,6.72632]
[1739825545247,0.00546866,2742.9,2742.8,6.7627744]
[1739825545473,0.00546866,2742.9,2742.8,6.72632]
[1739825546775,0.00546866,2742.9,2742.8,7.27632]
[1739825548094,0.00546866,2742.9,2742.8,0.8096]
[1739825548765,0.00546866,2742.9,2742.8,3.72632]
[1739825548962,0.00546866,2742.9,2742.8,4.940628]
[1739825549167,8.66e-06,2742.9,2742.8,7.97708336]
[1739825549488,8.66e-06,2742.9,2742.8,7.940628]
[1739825550908,8.66e-06,2742.9,2742.8,5.20507422]
[1739825551113,8.66e-06,2742.9,2742.8,2.00740926]
[1739825551284,8.66e-06,2742.9,2742.8,4.25982126]
[1739825551880,8.66e-06,2742.9,2742.8,4.84627533]
[1739825552085,8.66e-06,2742.9,2742.8,4.80982126]
[1739825552308,8.66e-06,2742.9,2742.8,4.54537504]
[1739825552606,8.66e-06,2742.9,2742.8,4.27632]
[1739825552805,8.66e-06,2742.9,2742.8,5.023328]
[1739825554818,8.66e-06,2742.9,2742.8,5.05978114]
[1739825556287,8.66e-06,2742.9,2742.8,8.05978114]
[1739825556472,8.66e-06,2742.9,2742.8,8.023328]
[1739825557208,8.66e-06,2742.9,2742.8,8.28773738]
[1739825557992,8.66e-06,2742.9,2742.8,8.75684201]
[1739825558319,6.72e-06,2743.2,2743.1,3.0164]
[1739825558517,6.72e-06,2743.2,2743.1,5.37543029]
[1739825559091,6.72e-06,2743.2,2743.1,5.64453492]
[1739825559892,6.72e-06,2743.2,2743.1,8.64453492]
[1739825560093,6.72e-06,2743.2,2743.1,8.60809563]
[1739825560692,4.18e-06,2743.5,2743.4,3.77048]
[1739825560896,4.18e-06,2743.5,2743.4,4.83058493]
[1739825561300,4.18e-06,2743.5,2743.4,8.38058493]
[1739825561523,4.18e-06,2743.5,2743.4,8.344147]
[1739825561751,4.18e-06,2743.5,2743.4,8.61325163]
[1739825562265,4.18e-06,2743.5,2743.4,8.87766101]
[1739825564059,4.18e-06,2743.5,2743.4,9.15466101]
[1739825565932,4.18e-06,2743.5,2743.4,9.3378422]
[1739825566133,4.18e-06,2743.5,2743.4,10.07239187]
[1739825572373,4.18e-06,2743.5,2743.4,9.97039187]
[1739825572876,4.18e-06,2743.5,2743.4,10.07039187]
[1739825574974,4.18e-06,2743.5,2743.4,9.97039187]
[1739825579794,1.05e-06,2743.8,2743.6,0.1]
[1739825579991,1.05e-06,2743.8,2743.7,4.26520517]
[1739825580168,1.05e-06,2743.8,2743.7,4.99331169]
[1739825581918,1.05e-06,2743.8,2743.7,8.26241632]
[1739825582088,7.32e-06,2744.1,2744.0,2.91545]
[1739825582288,7.32e-06,2744.1,2744.0,4.26038261]
[1739825582686,7.32e-06,2744.1,2744.0,7.46038261]
[1739825582875,7.32e-06,2744.1,2744.0,8.47154226]
[1739825583513,7.32e-06,2744.1,2744.0,8.74064689]
[1739825583672,2.99e-06,2744.4,2744.3,2.91513]
[1739825583874,2.99e-06,2744.4,2744.3,4.01815706]
[1739825584073,2.99e-06,2744.4,2744.3,4.56815706]
[1739825584387,2.99e-06,2744.4,2744.3,5.34506871]
[1739825584588,2.99e-06,2744.4,2744.3,5.61417334]
[1739825585725,2.99e-06,2744.4,2744.3,5.87858272]
[1739825586074,2.99e-06,2744.4,2744.3,5.97858272]
[1739825586273,2.99e-06,2744.4,2744.3,6.01500878]
[1739825587309,2.99e-06,2744.4,2744.3,5.87858272]
[1739825587681,2.99e-06,2744.4,2744.3,5.97858272]
[1739825588178,2.99e-06,2744.4,2744.3,6.75385473]
[1739825588900,2.99e-06,2744.4,2744.3,6.93537335]
[1739825589275,2.99e-06,2744.4,2744.3,6.8989473]
[1739825589522,8.06e-06,2744.7,2744.6,3.68651]
[1739825589680,8.06e-06,2744.7,2744.6,8.29807529]
[1739825589875,8.06e-06,2744.7,2744.6,8.261652]
[1739825591024,2.54e-06,2745.0,2744.9,2.91449]
[1739825591322,2.54e-06,2745.0,2744.9,3.50090957]
[1739825591480,2.54e-06,2745.0,2744.9,3.46449]
[1739825591793,2.54e-06,2745.0,2744.9,4.11604003]
[1739825592733,2.54e-06,2745.0,2744.9,4.38044941]
[1739825593341,2.54e-06,2745.0,2744.9,4.64955404]
[1739825593542,0.00546328,2745.6,2745.4,2.91396]
[1739825593849,0.00546328,2745.6,2745.5,4.0646625]
[1739825595417,3.28e-06,2745.6,2745.5,4.0646625]
[1739825596150,3.28e-06,2745.6,2745.5,4.028246]
[1739825596658,3.28e-06,2745.6,2745.5,4.29163985]
[1739825598321,3.28e-06,2745.6,2745.5,4.00024385]
[1739825598507,3.28e-06,2745.6,2745.5,3.99924385]
[1739825598849,3.28e-06,2745.6,2745.5,3.73585]
[1739825600755,0.82650328,2745.6,2745.5,3.73585]
[1739825601937,0.82650328,2745.6,2745.5,3.46385]
[1739825603516,0.82650328,2745.6,2745.4,3.18596]
[1739825603945,0.82650328,2745.6,2745.5,2.91385]
[1739825607728,0.82650328,2745.6,2745.1,2.91974428]
[1739825608057,1.32009503,2745.6,2745.2,3.18611]
[1739825608257,0.82650328,2745.6,2745.4,2.91391]
[1739825608425,0.82650328,2745.6,2745.4,2.91394]
[1739825608762,0.82650328,2745.6,2745.2,3.1861]
[1739825608763,0.82650328,2745.6,2745.5,2.91385]
[1739825609122,0.82650328,2745.6,2745.3,2.91404]
[1739825609329,0.82650328,2745.6,2745.4,2.91393]
[1739825609626,0.82650328,2745.6,2745.4,2.91395]
[1739825609831,0.82650328,2745.6,2745.4,2.91386]
[1739825610143,0.82650328,2745.6,2745.5,2.91385]
[1739825610334,0.82650328,2745.6,2745.4,2.91396]
[1739825611264,0.82650328,2745.6,2745.2,3.1861]
[1739825611446,0.82650328,2745.6,2745.3,2.914]
[1739825612035,0.82650328,2745.6,2745.5,2.91385]
[1739825613732,3.28e-06,2745.6,2745.5,3.46385]
[1739825613932,3.28e-06,2745.6,2745.5,4.13804914]
[1739825614902,3.28e-06,2745.6,2745.5,4.36649584]
[1739825615390,0.81670328,2745.6,2745.5,1.72464584]
[1739825615593,0.81670328,2745.6,2745.5,3.99804542]
[1739825616102,3.28e-06,2745.6,2745.5,3.99804542]
[1739825616397,3.28e-06,2745.6,2745.5,4.78774542]
[1739825616549,3.28e-06,2745.6,2745.5,4.82415935]
[1739825616754,3.28e-06,2745.6,2745.5,4.8241585]
[1739825616969,3.28e-06,2745.6,2745.5,8.73517035]
[1739825617144,3.28e-06,2745.6,2745.5,8.69875727]
[1739825619312,3.28e-06,2745.6,2745.5,8.59875727]
[1739825619521,3.28e-06,2745.6,2745.5,5.59875727]
[1739825620509,3.28e-06,2745.6,2745.5,4.25905727]
[1739825620679,3.28e-06,2745.6,2745.5,0.53419542]
[1739825620880,0.82310328,2745.6,2745.5,0.53419542]
[1739825622022,0.82310328,2745.6,2745.5,0.26486484]
[1739825622916,0.82310328,2745.6,2745.2,0.55]
[1739825623214,4.1094142,2745.5,2745.2,3.46416]
[1739825623417,4.1094142,2745.5,2745.2,0.55]
[1739825623631,0.8095,2745.4,2745.1,2.91967428]
[1739825624285,0.8095,2745.4,2745.1,0.00546428]
[1739825624673,0.8278,2745.3,2745.1,0.00546428]
[1739825625427,4.1094142,2745.2,2745.1,0.00546428]
[1739825628027,0.8278,2745.3,2745.1,0.00546428]
[1739825628638,1.6622446,2745.3,2745.1,0.00546428]
[1739825628831,4.5763146,2745.3,2745.1,0.00546428]
[1739825629504,4.61782807,2745.3,2745.1,0.00546428]
[1739825630136,0.8224,2745.2,2745.1,0.00546428]
[1739825632802,3.77808347,2745.2,2745.1,0.00546428]
[1739825632996,4.9188847,2745.2,2745.1,0.00546428]
[1739825633211,4.87737123,2745.2,2745.1,0.00546428]
[1739825633493,4.9188847,2745.2,2745.1,0.00546428]
[1739825633894,4.87737123,2745.2,2745.1,0.00546428]
[1739825635426,4.9188847,2745.2,2745.1,0.00546428]
[1739825636311,4.87737123,2745.2,2745.1,0.00546428]
[1739825637730,16.99937123,2745.2,2745.1,0.00546428]
[1739825638645,22.26937123,2745.2,2745.1,0.00546428]
[1739825640195,22.99190667,2745.2,2745.1,0.00546428]
[1739825640396,22.26937123,2745.2,2745.1,0.00546428]
[1739825640632,13.14737123,2745.2,2745.1,0.00546428]
[1739825643864,9.0696,2745.2,2745.1,0.00546428]
[1739825644269,11.98377,2745.2,2745.1,0.00546428]
[1739825644432,8.98377,2745.2,2745.1,0.00546428]
[1739825644763,3.71377,2745.2,2745.1,0.00546428]
[1739825645268,4.1094142,2745.4,2745.1,0.00546428]
[1739825645434,7.0233742,2745.4,2745.1,0.00546428]
[1739825647749,2.91417,2745.2,2745.1,0.00546428]
[1739825648061,2.9141,2745.3,2745.1,0.00546428]
[1739825648266,4.1094142,2745.4,2745.1,0.00546428]
[1739825648465,7.0234342,2745.4,2745.1,0.00546428]
[1739825649261,8.09488595,2745.4,2745.1,0.00546428]
[1739825649426,2.91417,2745.2,2745.1,0.00546428]
[1739825649966,8.09488595,2745.4,2745.1,0.00546428]
[1739825650182,2.91417,2745.2,2745.1,0.00546428]
[1739825650665,11.00895595,2745.4,2745.1,0.00546428]
[1739825650865,2.9141,2745.3,2745.1,0.00546428]
[1739825651577,2.91417,2745.2,2745.1,0.00546428]
[1739825652945,2.91412,2745.3,2745.1,0.00546428]
[1739825653148,2.91417,2745.2,2745.1,0.00546428]
[1739825654779,2.9141,2745.3,2745.1,0.00546428]
[1739825654951,5.82826,2745.3,2745.1,0.00546428]
[1739825655557,2.91417,2745.2,2745.1,0.00546428]
[1739825657380,2.9141,2745.3,2745.1,0.00546428]
[1739825657684,5.82827,2745.3,2745.1,0.00546428]
[1739825657854,2.91417,2745.2,2745.1,0.00546428]
[1739825660542,2.9141,2745.3,2745.1,0.00546428]
[1739825660834,2.91417,2745.2,2745.1,0.00546428]
[1739825665320,3.69897,2745.2,2745.1,0.00546428]
[1739825665483,21.09097,2745.2,2745.1,0.00546428]
[1739825665812,24.16347573,2745.2,2745.1,0.00546428]
[1739825666721,26.35347573,2745.2,2745.1,0.00546428]
[1739825668516,27.08720508,2745.2,2745.1,0.00546428]
[1739825669487,24.89720508,2745.2,2745.1,0.00546428]
[1739825670835,8.96897,2745.2,2745.1,0.00546428]
[1739825671002,8.18417,2745.2,2745.1,0.00546428]
[1739825671204,2.91417,2745.2,2745.1,0.00546428]
[1739825671387,2.91407,2745.3,2745.1,0.00546428]
[1739825671388,2.9141,2745.3,2745.1,0.00546428]
[1739825671590,4.1094142,2745.4,2745.1,3.00546428]
[1739825671827,4.1094142,2745.4,2745.1,3.73315171]
[1739825673020,4.1094142,2745.4,2745.1,0.73315171]
[1739825673236,4.1094142,2745.4,2745.1,0.00546428]
[1739825675139,4.1094142,2745.4,2745.1,3.00546428]
[1739825675637,4.1094142,2745.4,2745.1,0.00546428]
[1739825675848,4.1094142,2745.4,2745.1,3.00546428]
[1739825676058,4.1094142,2745.4,2745.1,0.00546428]
[1739825676210,4.1094142,2745.4,2745.1,3.00546428]
[1739825676936,7.8486642,2745.4,2745.1,0.00546428]
[1739825677148,4.1094142,2745.4,2745.1,0.00546428]
[1739825678607,7.0233842,2745.4,2745.1,0.00546428]
[1739825680048,2.91407,2745.3,2745.1,0.00546428]
[1739825680707,7.0233842,2745.4,2745.1,0.00546428]
[1739825680924,3.72477,2745.2,2745.1,0.00546428]
[1739825682258,2.91417,2745.2,2745.1,0.00546428]
[1739825687080,2.95568347,2745.2,2745.1,0.00546428]
[1739825687362,12.80147,2745.2,2745.1,0.00546428]
[1739825689133,18.07147,2745.2,2745.1,0.00546428]
[1739825689333,20.6511993,2745.2,2745.1,0.00546428]
[1739825695868,26.26180236,2745.2,2745.1,0.00546428]
[1739825696232,2.91449,2744.9,2744.8,0.00546487]
[1739825696432,22.22111767,2744.9,2744.8,0.00546487]
[1739825696749,22.1796042,2744.9,2744.8,0.00546487]
[1739825696949,23.83022943,2744.9,2744.8,0.00546487]
[1739825697193,26.83022943,2744.9,2744.8,0.00546487]
[1739825697377,27.01599253,2744.9,2744.8,0.00546487]
[1739825697580,26.83022943,2744.9,2744.8,0.00546487]
[1739825698709,27.01380538,2744.9,2744.8,0.00546487]
[1739825699223,34.05200546,2744.9,2744.8,0.00546487]
[1739825699381,10.8218442,2744.3,2744.2,0.00546607]
[1739825699706,25.2178442,2744.3,2744.2,0.00546607]
[1739825700417,27.4078442,2744.3,2744.2,0.00546607]
[1739825700973,2.91577,2743.7,2743.6,0.00546726]
[1739825701282,7.0251842,2743.7,2743.6,0.00546726]
[1739825701810,4.1094142,2743.7,2743.6,0.00546726]
[1739825702240,4.1094142,2744.0,2743.7,3.46577]
[1739825702391,4.1094142,2744.0,2743.9,4.27605]
[1739825702833,4.1094142,2744.0,2743.9,1.3605]
[1739825703996,4.1094142,2744.0,2743.6,3.54044499]
[1739825703997,4.1094142,2744.0,2743.7,0.7776]
[1739825706156,4.1094142,2744.0,2743.7,3.69331]
[1739825706373,4.1094142,2744.0,2743.7,1.46625773]
[1739825706671,7.0249542,2744.0,2743.6,0.27746726]
[1739825706990,4.1094142,2743.7,2743.6,0.27746726]
[1739825707451,4.1094142,2743.7,2743.6,3.19333726]
[1739825707651,4.1094142,2743.7,2743.6,2.92133726]
[1739825707957,4.1094142,2743.7,2743.6,0.00546726]
[1739825709062,4.1094142,2743.7,2743.6,2.92133726]
[1739825709266,4.1094142,2743.7,2743.6,0.00546726]
[1739825710857,11.01924662,2743.7,2743.6,0.00546726]
[1739825711057,13.20924662,2743.7,2743.6,0.00546726]
[1739825711265,20.14624662,2743.7,2743.6,0.00546726]
[1739825713655,17.23047662,2743.7,2743.6,0.00546726]
[1739825713960,20.14624662,2743.7,2743.6,0.00546726]
[1739825715834,25.41624662,2743.7,2743.6,0.00546726]
[1739825717646,22.50047662,2743.7,2743.6,0.00546726]
[1739825718648,25.41624662,2743.7,2743.6,0.00546726]
[1739825723787,21.5064142,2743.7,2743.6,0.00546726]
[1739825723963,12.3794142,2743.7,2743.6,0.00546726]
[1739825743456,15.2951842,2743.7,2743.6,0.00546726]
[1739825743639,12.3794142,2743.7,2743.6,0.00546726]
[1739825743836,15.2951842,2743.7,2743.6,0.00546726]
[1739825744050,26.32427862,2743.7,2743.6,0.00546726]
[1739825744247,27.13577862,2743.7,2743.6,0.00546726]
[1739825746664,24.13577862,2743.7,2743.6,0.00546726]
[1739825747662,26.32577862,2743.7,2743.6,0.00546726]
[1739825750046,2.91608,2743.4,2743.3,0.00546786]
[1739825750253,29.20960887,2743.4,2743.3,0.00546786]
[1739825750460,29.20960887,2743.4,2743.0,0.00546846]
[1739825750461,2.9164,2743.1,2743.0,0.00546846]
[1739825750664,22.25012767,2743.1,2743.0,0.00546846]
[1739825750971,22.2086142,2743.1,2743.0,0.00546846]
[1739825751194,23.87548731,2743.1,2743.0,0.00546846]
[1739825755574,24.62348328,2743.1,2743.0,0.00546846]
[1739825761208,26.81548328,2743.1,2743.0,0.00546846]
[1739825762364,24.62348328,2743.1,2743.0,0.00546846]
[1739825765106,34.73608634,2743.1,2743.0,0.00546846]
[1739825765307,5.10862,2742.9,2742.8,0.1]
[1739825765476,6.36803653,2742.9,2742.8,0.1]
[1739825765816,6.32652306,2742.9,2742.8,0.1]
[1739825766307,6.32652306,2742.9,2742.4,0.00546966]
[1739825766308,7.5,2742.5,2742.4,0.00546966]
[1739825766459,34.19697146,2742.5,2742.4,0.00546966]
[1739825766658,36.09906588,2742.5,2742.4,0.00546966]
[1739825767111,3.74836,2742.2,2742.1,0.01047026]
[1739825767259,29.6837742,2742.2,2742.1,0.01047026]
[1739825767603,3.74868,2741.9,2741.5,0.00547145]